{"text_format":"3","workbook":"xlsx","n_sheets":2,"sheets":["ΤΡΟΠΟΣ ΧΡΗΣΗΣ ΤΟΥ ΠΡΟΤΥΠΟΥ","ΒΑΘΜΟΛΟΓΙΟ"],"not_rendered":{"defined_names":5},"read":"whole","date_system":"1900"}

{"sheet":"ΤΡΟΠΟΣ ΧΡΗΣΗΣ ΤΟΥ ΠΡΟΤΥΠΟΥ","index":0,"n_rows":10,"n_cols":2,"rows_kept":10}
[null,"ΟΔΗΓΊΕΣ"]
[null,"Χρησιμοποιήστε το φύλλο εργασίας ΒΑΘΜΟΛΟΓΙΟ για να υπολογίσετε τους βαθμούς, όπου κάθε εργασία λαμβάνει έναν καθορισμένο αριθμό βαθμών. "]
[null,"Οδηγίες: Μην παραλείπετε να αποθηκεύετε αντίγραφα ασφαλείας των βαθμών."]
[null,"1. Συμπληρώστε το όνομα του σχολείου, πληροφορίες τάξης, ονόματα μαθητών και κωδικούς μαθητών (προαιρετικό).   "]
[null,"2. Προσαρμόστε τον πίνακα βαθμών σύμφωνα με το τυπικό σύστημα βαθμολογίας που χρησιμοποιείτε."]
[null,"3. Συμπληρώστε τα ονόματα εργασιών ή τεστ ξεκινώντας από το κελί G7, καθώς και το ποσοστό που λαμβάνει το κάθε ένα (π.χ. \"Τελικό\" και \"50%\"). "]
[null,"4. Συμπληρώστε τις βαθμολογίες για κάθε μαθητή για κάθε εργασία ή τεστ. Οι στήλες \"Βαθμολογία\", \"Βαθμός με γράμμα\" και \"GPA\" υπολογίζονται αυτόματα, αλλά μπορείτε να τα αντικαταστήσετε, εάν θέλετε. Ο τρόπος υπολογισμού της βαθμολογίας, ο μέσος βαθμός και ο τελικός βαθμός θα είναι ημιτελείς μέχρι να καταχωρηθούν όλοι οι βαθμοί."]
[null,"Χρησιμοποιήστε την εντολή \"Περιοχή εκτύπωσης\" στο μενού \"Διάταξη σελίδας\" εάν θέλετε να αλλάξετε την περιοχή εκτύπωσης."]
[null,"Η βαθμολογία, ο βαθμός με γράμμα και το GPA δεν είναι έγκυρα μέχρι να ολοκληρωθεί το 100% των τεστ και των εργασιών. "]
[null,"Εισαγάγετε κάθε εργασία ή τεστ και το ποσοστό του συνολικού βαθμού στα κελιά G7 έως W8."]

{"sheet":"ΒΑΘΜΟΛΟΓΙΟ","index":1,"n_rows":20,"n_cols":23,"rows_kept":20,"merged":[[5,1,5,5],[6,1,6,3],[6,4,6,5],[7,1,8,3],[7,4,7,5],[8,4,8,5],[15,1,15,5],[16,1,16,2],[17,1,17,2],[18,1,18,2],[19,1,19,2]]}
[null,"ΤΟ ΟΝΟΜΑ ΤΟΥ ΣΧΟΛΕΙΟΥ ΣΑΣ"]
[]
[{"$nulls":6},"Βαθμολογία",{"v":0,"d":"0%"},{"v":0.6,"d":"60%"},{"v":0.63,"d":"63%"},{"v":0.67,"d":"67%"},{"v":0.7,"d":"70%"},{"v":0.73,"d":"73%"},{"v":0.77,"d":"77%"},{"v":0.8,"d":"80%"},{"v":0.83,"d":"83%"},{"v":0.87,"d":"87%"},{"v":0.9,"d":"90%"},{"v":0.93,"d":"93%"},{"v":0.97,"d":"97%"}]
[{"$nulls":6},"Βαθμός με γράμμα","ΣΤ","Δ-","Δ","Δ+","Γ-","Γ","Γ+","Β-","Β","B+","A-","Α","A+"]
[{"$nulls":6},"GPA",0,0.67,1,1.33,1.67,2,2.33,2.67,3,3.33,3.67,4,4]
[null,"Όνομα καθηγητή"]
[null,"Τάξη/Εργασία",null,null,"Όνομα εργασίας ή τεστ"]
[null,"Έτος/Εξάμηνο/Τρίμηνο",null,null,"Ποσοστό (θα πρέπει να αθροίζει 100%)"]
[{"$nulls":4},{"$f":"\"Συνολικό ποσοστό: \"&SUM(G8:W8)*100&\"%\"","v":"Συνολικό ποσοστό: 0%"}]
[null,"Όνομα μαθητή","Κωδικός μαθητή","Βαθμολογία","Βαθμός με γράμμα","GPA","Στήλη6","Στήλη7","Στήλη8","Στήλη9","Στήλη10","Στήλη11","Στήλη12","Στήλη13","Στήλη14","Στήλη15","Στήλη16","Στήλη17","Στήλη18","Στήλη19","Στήλη20","Στήλη21","Στήλη22"]
[{"$nulls":3},{"$f":"(IF(SUM(Βαθμολογίες[[#This Row],[Στήλη6]:[Στήλη22]]),ROUND(SUMPRODUCT($G$8:$W$8,Βαθμολογίες[[#This Row],[Στήλη6]:[Στήλη22]]),2),\"\"))","v":""},{"$f":"IF(Βαθμολογίες[[#This Row],[Βαθμολογία]]<>\"\",HLOOKUP(Βαθμολογίες[[#This Row],[Βαθμολογία]],ΠίνακαςΒαθμών,2),\"\")","v":""},{"$f":"IF(Βαθμολογίες[[#This Row],[Βαθμολογία]]<>\"\",HLOOKUP(Βαθμολογίες[[#This Row],[Βαθμολογία]],ΠίνακαςΒαθμών,3),\"\")","v":""}]
[{"$nulls":3},{"$f":"(IF(SUM(Βαθμολογίες[[#This Row],[Στήλη6]:[Στήλη22]]),ROUND(SUMPRODUCT($G$8:$W$8,Βαθμολογίες[[#This Row],[Στήλη6]:[Στήλη22]]),2),\"\"))","v":""},{"$f":"IF(Βαθμολογίες[[#This Row],[Βαθμολογία]]<>\"\",HLOOKUP(Βαθμολογίες[[#This Row],[Βαθμολογία]],ΠίνακαςΒαθμών,2),\"\")","v":""},{"$f":"IF(Βαθμολογίες[[#This Row],[Βαθμολογία]]<>\"\",HLOOKUP(Βαθμολογίες[[#This Row],[Βαθμολογία]],ΠίνακαςΒαθμών,3),\"\")","v":""}]
[{"$nulls":3},{"$f":"(IF(SUM(Βαθμολογίες[[#This Row],[Στήλη6]:[Στήλη22]]),ROUND(SUMPRODUCT($G$8:$W$8,Βαθμολογίες[[#This Row],[Στήλη6]:[Στήλη22]]),2),\"\"))","v":""},{"$f":"IF(Βαθμολογίες[[#This Row],[Βαθμολογία]]<>\"\",HLOOKUP(Βαθμολογίες[[#This Row],[Βαθμολογία]],ΠίνακαςΒαθμών,2),\"\")","v":""},{"$f":"IF(Βαθμολογίες[[#This Row],[Βαθμολογία]]<>\"\",HLOOKUP(Βαθμολογίες[[#This Row],[Βαθμολογία]],ΠίνακαςΒαθμών,3),\"\")","v":""}]
[{"$nulls":3},{"$f":"(IF(SUM(Βαθμολογίες[[#This Row],[Στήλη6]:[Στήλη22]]),ROUND(SUMPRODUCT($G$8:$W$8,Βαθμολογίες[[#This Row],[Στήλη6]:[Στήλη22]]),2),\"\"))","v":""},{"$f":"IF(Βαθμολογίες[[#This Row],[Βαθμολογία]]<>\"\",HLOOKUP(Βαθμολογίες[[#This Row],[Βαθμολογία]],ΠίνακαςΒαθμών,2),\"\")","v":""},{"$f":"IF(Βαθμολογίες[[#This Row],[Βαθμολογία]]<>\"\",HLOOKUP(Βαθμολογίες[[#This Row],[Βαθμολογία]],ΠίνακαςΒαθμών,3),\"\")","v":""}]
[{"$nulls":3},{"$f":"(IF(SUM(Βαθμολογίες[[#This Row],[Στήλη6]:[Στήλη22]]),ROUND(SUMPRODUCT($G$8:$W$8,Βαθμολογίες[[#This Row],[Στήλη6]:[Στήλη22]]),2),\"\"))","v":""},{"$f":"IF(Βαθμολογίες[[#This Row],[Βαθμολογία]]<>\"\",HLOOKUP(Βαθμολογίες[[#This Row],[Βαθμολογία]],ΠίνακαςΒαθμών,2),\"\")","v":""},{"$f":"IF(Βαθμολογίες[[#This Row],[Βαθμολογία]]<>\"\",HLOOKUP(Βαθμολογίες[[#This Row],[Βαθμολογία]],ΠίνακαςΒαθμών,3),\"\")","v":""}]
[]
[null,"Σύνοψη τάξης",null,"Βαθμολογία","Βαθμός με γράμμα","GPA","","","","","","","","","","",""]
[null," Μέσος όρος",null,{"$f":"IFERROR(AVERAGE(Βαθμολογίες[[#All],[Βαθμολογία]]),0)","v":{"v":0,"d":"0.0%"}},{"$f":"IFERROR(HLOOKUP(D18,ΠίνακαςΒαθμών,2),\"\")","v":"ΣΤ"},{"$f":"IFERROR(AVERAGE(Βαθμολογίες[[#All],[GPA]]),0)","v":0},"","","","","","","","","","","","","","","","",""]
[null," Υψηλότερη βαθμολογία",null,{"$f":"IFERROR(MAX(Βαθμολογίες[[#All],[Βαθμολογία]]),0)","v":{"v":0,"d":"0.0%"}},{"$f":"IFERROR(HLOOKUP(D19,ΠίνακαςΒαθμών,2),\"\")","v":"ΣΤ"},{"$f":"IFERROR(MAX(Βαθμολογίες[[#All],[GPA]]),0)","v":0},"","","","","","","","","","","","","","","","",""]
[null," Χαμηλότερη βαθμολογία",null,{"$f":"IFERROR(MIN(Βαθμολογίες[[#All],[Βαθμολογία]]),0)","v":{"v":0,"d":"0.0%"}},{"$f":"IFERROR(HLOOKUP(D20,ΠίνακαςΒαθμών,2),\"\")","v":"ΣΤ"},{"$f":"IFERROR(MIN(Βαθμολογίες[[#All],[GPA]]),0)","v":0},"","","","","","","","","","","","","","","","",""]